[Event "*** Qualifier 2: Titled Tuesday 3|2 Blitz"]
[Site "Chess.com"]
[Date "2017.04.11"]
[Round "5"]
[White "3f32"]
[Black "Noukii"]
[Result "0-1"]
[WhiteElo "2388"]
[BlackElo "2625"]
[TimeControl "180+2"]
[EndTime "14:04:56 PDT"]
[Termination "Noukii won by resignation"]

1. d4 {[%clk 0:03:02]} 1... d5 {[%clk 0:03:01]} 2. c4 {[%clk 0:03:02.9]} 2... c6
{[%clk 0:03:02.7]} 3. Nc3 {[%clk 0:03:02]} 3... Nf6 {[%clk 0:03:04.3]} 4. Nf3
{[%clk 0:03:03.3]} 4... a6 {[%clk 0:03:05.8]} 5. e3 {[%clk 0:02:57.9]} 5... Bf5
{[%clk 0:03:06]} 6. Ne5 {[%clk 0:02:34.1]} 6... Nbd7 {[%clk 0:03:05.6]} 7. Qb3
{[%clk 0:02:30.2]} 7... Qc7 {[%clk 0:03:00.9]} 8. cxd5 {[%clk 0:02:23.5]} 8...
Nxe5 {[%clk 0:03:02.3]} 9. dxe5 {[%clk 0:02:23.5]} 9... Nxd5 {[%clk 0:03:03.8]}
10. Nxd5 {[%clk 0:02:21.9]} 10... cxd5 {[%clk 0:03:05.7]} 11. Bd2 {[%clk
0:02:14.3]} 11... e6 {[%clk 0:02:58.4]} 12. Rc1 {[%clk 0:02:12.8]} 12... Qd7
{[%clk 0:02:59.7]} 13. Be2 {[%clk 0:02:08.6]} 13... Be7 {[%clk 0:02:58.3]} 14.
O-O {[%clk 0:02:03.2]} 14... O-O {[%clk 0:02:59.3]} 15. Bb4 {[%clk 0:02:04.4]}
15... Rfc8 {[%clk 0:02:55.2]} 16. Bxe7 {[%clk 0:02:04.3]} 16... Qxe7 {[%clk
0:02:57.1]} 17. Rc3 {[%clk 0:02:03.8]} 17... h6 {[%clk 0:01:56.4]} 18. Rfc1
{[%clk 0:02:01]} 18... Qd7 {[%clk 0:01:57.9]} 19. Qb6 {[%clk 0:01:38.7]} 19...
Rxc3 {[%clk 0:01:54.8]} 20. Rxc3 {[%clk 0:01:40.6]} 20... Rc8 {[%clk 0:01:56]}
21. Qd6 {[%clk 0:01:19.1]} 21... Qe8 {[%clk 0:01:43.5]} 22. Rc7 {[%clk
0:01:04.7]} 22... Rxc7 {[%clk 0:01:44.7]} 23. Qxc7 {[%clk 0:01:06.6]} 23... Qa4
{[%clk 0:01:45]} 24. Qxb7 {[%clk 0:01:00.5]} 24... Qxa2 {[%clk 0:01:45.5]} 25.
h3 {[%clk 0:00:53]} 25... a5 {[%clk 0:01:41.2]} 26. g4 {[%clk 0:00:45.3]} 26...
Qb1+ {[%clk 0:01:39.2]} 27. Kh2 {[%clk 0:00:44.8]} 27... Be4 {[%clk 0:01:37.3]}
28. Qb8+ {[%clk 0:00:39.5]} 28... Kh7 {[%clk 0:01:37.5]} 29. f3 {[%clk
0:00:36.3]} 29... Qe1 {[%clk 0:01:34.6]} 30. fxe4 {[%clk 0:00:32.1]} 30... Qxe2+
{[%clk 0:01:35]} 31. Kh1 {[%clk 0:00:32.1]} 31... Qf3+ {[%clk 0:01:31]} 32. Kh2
{[%clk 0:00:26.5]} 32... Qxe4 {[%clk 0:01:29.1]} 33. Qc7 {[%clk 0:00:27.1]}
33... Kg6 {[%clk 0:01:27]} 34. Qxa5 {[%clk 0:00:26.8]} 34... Qxe5+ {[%clk
0:01:28.3]} 35. Kg2 {[%clk 0:00:28]} 35... Qxb2+ {[%clk 0:01:28.1]} 36. Kg3
{[%clk 0:00:29.6]} 36... Qe5+ {[%clk 0:01:28.9]} 37. Kf3 {[%clk 0:00:27.6]}
37... Qh2 {[%clk 0:01:27.9]} 38. Qa4 {[%clk 0:00:13.8]} 38... Qxh3+ {[%clk
0:01:28.4]} 39. Kf2 {[%clk 0:00:15.5]} 39... Qh2+ {[%clk 0:01:24]} 40. Kf3
{[%clk 0:00:16.3]} 40... Qh1+ {[%clk 0:01:25.3]} 41. Kf2 {[%clk 0:00:17.7]}
41... Qe4 {[%clk 0:01:26.6]} 42. Qd1 {[%clk 0:00:18.7]} 42... Kg5 {[%clk
0:01:24.6]} 0-1

[Event "*** Qualifier 2: Titled Tuesday 3|2 Blitz"]
[Site "Chess.com"]
[Date "2017.04.11"]
[Round "5"]
[White "ftorodent"]
[Black "pKiLz5Rn9b"]
[Result "1-0"]
[WhiteElo "2512"]
[BlackElo "2502"]
[TimeControl "180+2"]
[EndTime "14:05:09 PDT"]
[Termination "ftorodent won by resignation"]

1. d4 {[%clk 0:03:02]} 1... Nf6 {[%clk 0:03:01]} 2. c4 {[%clk 0:03:02.9]} 2...
e6 {[%clk 0:03:02.3]} 3. Nf3 {[%clk 0:03:03.5]} 3... b6 {[%clk 0:03:02.9]} 4. a3
{[%clk 0:03:04.3]} 4... Bb7 {[%clk 0:03:02.4]} 5. Nc3 {[%clk 0:03:01.4]} 5... d5
{[%clk 0:03:03.8]} 6. cxd5 {[%clk 0:03:02.2]} 6... Nxd5 {[%clk 0:03:05.7]} 7. e3
{[%clk 0:03:02.1]} 7... Be7 {[%clk 0:03:02.7]} 8. Bb5+ {[%clk 0:03:03]} 8... c6
{[%clk 0:03:02.4]} 9. Bd3 {[%clk 0:03:04.7]} 9... O-O {[%clk 0:03:01.8]} 10. Qc2
{[%clk 0:03:06]} 10... g6 {[%clk 0:02:43.9]} 11. h4 {[%clk 0:03:01.6]} 11...
Nxc3 {[%clk 0:02:05.3]} 12. bxc3 {[%clk 0:03:01.7]} 12... Ba6 {[%clk 0:01:55.1]}
13. c4 {[%clk 0:02:56.6]} 13... Qe8 {[%clk 0:01:09.7]} 14. h5 {[%clk 0:02:35.5]}
14... Nd7 {[%clk 0:01:09.4]} 15. e4 {[%clk 0:02:17.2]} 15... Bf6 {[%clk
0:01:07.3]} 16. Bh6 {[%clk 0:02:09.9]} 16... Bg7 {[%clk 0:01:06.6]} 17. Qd2
{[%clk 0:02:11.5]} 17... Bh8 {[%clk 0:00:39.7]} 18. Bxf8 {[%clk 0:01:59.4]}
18... Nxf8 {[%clk 0:00:41]} 19. hxg6 {[%clk 0:01:55.6]} 19... fxg6 {[%clk
0:00:41.4]} 20. e5 {[%clk 0:01:55]} 20... c5 {[%clk 0:00:39.3]} 21. dxc5 {[%clk
0:01:50.4]} 21... Rd8 {[%clk 0:00:37.9]} 22. Qe3 {[%clk 0:01:50.7]} 22... bxc5
{[%clk 0:00:35.9]} 23. O-O {[%clk 0:01:50.2]} 23... Qa4 {[%clk 0:00:22.5]} 24.
Rad1 {[%clk 0:01:39.3]} 24... Bxc4 {[%clk 0:00:19.7]} 25. Bxc4 {[%clk
0:01:31.7]} 25... Rxd1 {[%clk 0:00:18.1]} 26. Qxc5 {[%clk 0:01:29.3]} 26...
Rxf1+ {[%clk 0:00:16.1]} 27. Bxf1 {[%clk 0:01:30.3]} 27... Bg7 {[%clk
0:00:14.1]} 28. Bc4 {[%clk 0:01:28.4]} 28... h6 {[%clk 0:00:08.7]} 29. g3 {[%clk
0:01:19.3]} 29... Qd1+ {[%clk 0:00:07.4]} 30. Kg2 {[%clk 0:01:20.5]} 30... Kh7
{[%clk 0:00:05.1]} 31. Qxa7 {[%clk 0:01:18.6]} 31... Qc2 {[%clk 0:00:03.8]} 32.
Qd4 {[%clk 0:01:17.9]} 32... Qf5 {[%clk 0:00:04.2]} 33. a4 {[%clk 0:01:15.7]}
33... Qf7 {[%clk 0:00:03.9]} 34. a5 {[%clk 0:01:14.7]} 34... Nd7 {[%clk
0:00:05]} 35. a6 {[%clk 0:01:13.4]} 35... Nb8 {[%clk 0:00:06.1]} 36. Qb6 {[%clk
0:01:05.6]} 36... Nd7 {[%clk 0:00:05.3]} 37. Qxe6 {[%clk 0:01:00.5]} 1-0

[Event "*** Qualifier 2: Titled Tuesday 3|2 Blitz"]
[Site "Chess.com"]
[Date "2017.04.11"]
[Round "5"]
[White "Winehouse83"]
[Black "Infernal_XaM"]
[Result "0-1"]
[WhiteElo "2322"]
[BlackElo "2743"]
[TimeControl "180+2"]
[EndTime "14:06:05 PDT"]
[Termination "Infernal_XaM won by resignation"]

1. d4 {[%clk 0:03:02]} 1... Nf6 {[%clk 0:03:00.9]} 2. Bf4 {[%clk 0:03:02.9]}
2... c5 {[%clk 0:03:01.8]} 3. e3 {[%clk 0:03:03.7]} 3... Qb6 {[%clk 0:03:02.3]}
4. Nc3 {[%clk 0:03:04.3]} 4... cxd4 {[%clk 0:03:01.9]} 5. exd4 {[%clk
0:03:04.7]} 5... e6 {[%clk 0:03:01.8]} 6. a3 {[%clk 0:02:52.3]} 6... Be7 {[%clk
0:02:53.4]} 7. Nf3 {[%clk 0:02:30.9]} 7... O-O {[%clk 0:02:53.8]} 8. Bd3 {[%clk
0:02:31.5]} 8... Nc6 {[%clk 0:02:51.4]} 9. O-O {[%clk 0:02:30.8]} 9... d6 {[%clk
0:02:48.9]} 10. b4 {[%clk 0:02:23]} 10... g6 {[%clk 0:02:42.7]} 11. Na4 {[%clk
0:02:13.7]} 11... Qd8 {[%clk 0:02:42.4]} 12. c4 {[%clk 0:02:14.3]} 12... Bd7
{[%clk 0:02:30.2]} 13. Nc3 {[%clk 0:02:13.6]} 13... Rc8 {[%clk 0:02:31.2]} 14.
d5 {[%clk 0:01:27.5]} 14... exd5 {[%clk 0:02:30.3]} 15. Nxd5 {[%clk 0:01:27.8]}
15... Nxd5 {[%clk 0:02:29.1]} 16. cxd5 {[%clk 0:01:29.3]} 16... Nb8 {[%clk
0:02:30.6]} 17. Rc1 {[%clk 0:01:24.1]} 17... Bg4 {[%clk 0:02:29.7]} 18. h3
{[%clk 0:01:20.7]} 18... Bxf3 {[%clk 0:02:30.8]} 19. Qxf3 {[%clk 0:01:20.8]}
19... Nd7 {[%clk 0:02:32.4]} 20. Rxc8 {[%clk 0:01:04.5]} 20... Qxc8 {[%clk
0:02:33.2]} 21. Qe3 {[%clk 0:01:05.6]} 21... Re8 {[%clk 0:02:17.2]} 22. Qxa7
{[%clk 0:00:44.5]} 22... Ne5 {[%clk 0:02:15.7]} 23. Bxe5 {[%clk 0:00:40.4]}
23... dxe5 {[%clk 0:02:16.6]} 24. Qe3 {[%clk 0:00:30.6]} 24... Bd6 {[%clk
0:02:14.3]} 25. Bb5 {[%clk 0:00:30.8]} 25... Re7 {[%clk 0:02:12.6]} 26. Rc1
{[%clk 0:00:31]} 26... Qd8 {[%clk 0:02:10.5]} 27. Qc3 {[%clk 0:00:21.7]} 27...
Kg7 {[%clk 0:02:09.2]} 28. Qc8 {[%clk 0:00:18.5]} 28... Qb6 {[%clk 0:02:07.7]}
29. Be2 {[%clk 0:00:18]} 29... Qd4 {[%clk 0:02:06.5]} 30. Qc4 {[%clk 0:00:18.6]}
30... Qd2 {[%clk 0:02:00.8]} 31. Rd1 {[%clk 0:00:19.5]} 31... Qb2 {[%clk
0:02:01.1]} 32. Qd3 {[%clk 0:00:19.8]} 32... Rc7 {[%clk 0:02:00.9]} 33. Rb1
{[%clk 0:00:18.9]} 33... Qa2 {[%clk 0:01:59.4]} 34. Bd1 {[%clk 0:00:19.1]} 34...
h5 {[%clk 0:01:47.3]} 35. Bb3 {[%clk 0:00:19.7]} 35... Qxa3 {[%clk 0:01:48.2]}
36. b5 {[%clk 0:00:13.5]} 36... Qa5 {[%clk 0:01:39.9]} 37. Bd1 {[%clk
0:00:10.2]} 37... Rc3 {[%clk 0:01:40]} 38. Qd2 {[%clk 0:00:09.5]} 38... Qa3
{[%clk 0:01:37.8]} 39. Qb2 {[%clk 0:00:07.3]} 39... Qxb2 {[%clk 0:01:37.3]} 40.
Rxb2 {[%clk 0:00:09.2]} 40... Rc1 {[%clk 0:01:38.2]} 41. Rd2 {[%clk 0:00:10.8]}
41... b6 {[%clk 0:01:38]} 42. Kh2 {[%clk 0:00:10.3]} 42... e4+ {[%clk
0:01:38.6]} 43. g3 {[%clk 0:00:11.5]} 43... f5 {[%clk 0:01:39.4]} 44. Be2 {[%clk
0:00:10.6]} 44... Kf6 {[%clk 0:01:38.8]} 45. Kg2 {[%clk 0:00:10.8]} 45... Ke7
{[%clk 0:01:35.1]} 46. Ra2 {[%clk 0:00:11.1]} 46... Bc5 {[%clk 0:01:32.9]} 47.
Ra7+ {[%clk 0:00:11.9]} 47... Kf6 {[%clk 0:01:34]} 48. Rc7 {[%clk 0:00:10.8]}
48... Rc2 {[%clk 0:01:32.2]} 49. Kf1 {[%clk 0:00:10.3]} 49... Rd2 {[%clk
0:01:32.9]} 50. Rc6+ {[%clk 0:00:08.8]} 50... Kg7 {[%clk 0:01:33.7]} 51. d6
{[%clk 0:00:07.4]} 51... h4 {[%clk 0:01:29.8]} 52. gxh4 {[%clk 0:00:07.8]} 52...
f4 {[%clk 0:01:29.6]} 53. Bc4 {[%clk 0:00:09.1]} 53... f3 {[%clk 0:01:27]} 54.
Ke1 {[%clk 0:00:08]} 54... Bb4 {[%clk 0:01:28.1]} 55. Rc7+ {[%clk 0:00:03.3]}
0-1

[Event "*** Qualifier 2: Titled Tuesday 3|2 Blitz"]
[Site "Chess.com"]
[Date "2017.04.11"]
[Round "5"]
[White "Outsmiter"]
[Black "MorpheusPro"]
[Result "0-1"]
[WhiteElo "2102"]
[BlackElo "2161"]
[TimeControl "180+2"]
[EndTime "14:06:06 PDT"]
[Termination "MorpheusPro won by checkmate"]

1. e4 {[%clk 0:03:02]} 1... c6 {[%clk 0:02:59.1]} 2. d3 {[%clk 0:03:01.3]} 2...
d5 {[%clk 0:02:59.4]} 3. Nd2 {[%clk 0:03:02.8]} 3... e5 {[%clk 0:02:53.1]} 4.
Ngf3 {[%clk 0:03:03.5]} 4... Bg4 {[%clk 0:02:47.6]} 5. g3 {[%clk 0:03:01.9]}
5... Nf6 {[%clk 0:02:46.1]} 6. Bg2 {[%clk 0:03:01.3]} 6... Be7 {[%clk
0:02:38.8]} 7. O-O {[%clk 0:03:01]} 7... O-O {[%clk 0:02:39.5]} 8. h3 {[%clk
0:03:00.8]} 8... Bxf3 {[%clk 0:02:39.7]} 9. Bxf3 {[%clk 0:03:02.7]} 9... dxe4
{[%clk 0:02:36.7]} 10. Nxe4 {[%clk 0:02:59]} 10... Nxe4 {[%clk 0:02:36.5]} 11.
Bxe4 {[%clk 0:03:00.9]} 11... f5 {[%clk 0:02:32.9]} 12. Bg2 {[%clk 0:03:01.2]}
12... f4 {[%clk 0:02:31.6]} 13. Bd2 {[%clk 0:02:47.7]} 13... Na6 {[%clk
0:02:04.2]} 14. Bc3 {[%clk 0:02:44.1]} 14... Bd6 {[%clk 0:01:58.6]} 15. Qg4
{[%clk 0:02:38.4]} 15... Qc8 {[%clk 0:01:31.7]} 16. Qe2 {[%clk 0:02:12.3]} 16...
Qf5 {[%clk 0:01:19.5]} 17. g4 {[%clk 0:02:06.2]} 17... Qf6 {[%clk 0:01:07]} 18.
Be4 {[%clk 0:02:03.2]} 18... Nc5 {[%clk 0:00:57.8]} 19. f3 {[%clk 0:01:57.6]}
19... Rae8 {[%clk 0:00:47.9]} 20. Be1 {[%clk 0:01:49.8]} 20... Ne6 {[%clk
0:00:41.6]} 21. h4 {[%clk 0:01:47.6]} 21... Nd4 {[%clk 0:00:37.7]} 22. Qf2
{[%clk 0:01:41.9]} 22... Ne6 {[%clk 0:00:26.2]} 23. Kh1 {[%clk 0:01:28.4]} 23...
Bc5 {[%clk 0:00:26.1]} 24. Qh2 {[%clk 0:01:23.5]} 24... Be3 {[%clk 0:00:26.8]}
25. Bf2 {[%clk 0:01:09.9]} 25... Rd8 {[%clk 0:00:24]} 26. Bxe3 {[%clk
0:01:04.4]} 26... fxe3 {[%clk 0:00:24.4]} 27. Rae1 {[%clk 0:01:04.4]} 27... Qf4
{[%clk 0:00:24.2]} 28. c3 {[%clk 0:00:57.8]} 28... Nc5 {[%clk 0:00:18.7]} 29.
Qe2 {[%clk 0:00:52.3]} 29... Qg3 {[%clk 0:00:15.9]} 30. h5 {[%clk 0:00:44.2]}
30... Qh3+ {[%clk 0:00:14.2]} 31. Kg1 {[%clk 0:00:44.7]} 31... Qg3+ {[%clk
0:00:13.6]} 32. Kh1 {[%clk 0:00:45.4]} 32... Qh3+ {[%clk 0:00:13.5]} 33. Kg1
{[%clk 0:00:44.2]} 33... Qg3+ {[%clk 0:00:13.9]} 34. Kh1 {[%clk 0:00:44.7]}
34... Nxe4 {[%clk 0:00:15]} 35. fxe4 {[%clk 0:00:35.1]} 35... Rf2 {[%clk
0:00:15]} 36. Qxe3 {[%clk 0:00:08.8]} 36... Qg2# {[%clk 0:00:15]} 0-1

[Event "*** Qualifier 2: Titled Tuesday 3|2 Blitz"]
[Site "Chess.com"]
[Date "2017.04.11"]
[Round "5"]
[White "talaicito"]
[Black "luisgui16"]
[Result "0-1"]
[WhiteElo "2010"]
[BlackElo "2125"]
[TimeControl "180+2"]
[EndTime "14:06:20 PDT"]
[Termination "luisgui16 won on time"]

1. e4 {[%clk 0:02:58.9]} 1... g6 {[%clk 0:03:00.5]} 2. d4 {[%clk 0:02:58.8]}
2... Bg7 {[%clk 0:02:59.7]} 3. Nc3 {[%clk 0:02:57]} 3... d6 {[%clk 0:03:00.5]}
4. g3 {[%clk 0:02:57.2]} 4... Nc6 {[%clk 0:03:01]} 5. d5 {[%clk 0:02:47.4]} 5...
Nd4 {[%clk 0:03:01]} 6. Be3 {[%clk 0:02:43.9]} 6... c5 {[%clk 0:03:00.1]} 7. Bg2
{[%clk 0:02:39.5]} 7... h5 {[%clk 0:02:58.5]} 8. Qd2 {[%clk 0:02:07.1]} 8... Nh6
{[%clk 0:02:44.9]} 9. h3 {[%clk 0:02:03.4]} 9... Qa5 {[%clk 0:02:31.9]} 10. Nf3
{[%clk 0:01:41.4]} 10... Nxf3+ {[%clk 0:02:28.9]} 11. Bxf3 {[%clk 0:01:41.8]}
11... b5 {[%clk 0:02:26.1]} 12. Bg2 {[%clk 0:01:36.5]} 12... b4 {[%clk
0:02:26.8]} 13. Ne2 {[%clk 0:01:32.7]} 13... Ba6 {[%clk 0:02:24.5]} 14. O-O
{[%clk 0:01:26.1]} 14... Bxb2 {[%clk 0:02:08]} 15. Rab1 {[%clk 0:01:17.7]} 15...
Bg7 {[%clk 0:02:06.4]} 16. f4 {[%clk 0:01:04.9]} 16... Qxa2 {[%clk 0:01:48.7]}
17. e5 {[%clk 0:01:01]} 17... Qc4 {[%clk 0:01:40.9]} 18. Rfe1 {[%clk 0:00:57.5]}
18... Nf5 {[%clk 0:01:39.3]} 19. Bf2 {[%clk 0:00:34]} 19... Rd8 {[%clk
0:01:27.3]} 20. Nc1 {[%clk 0:00:26.4]} 20... Qb5 {[%clk 0:00:57.6]} 21. Ra1
{[%clk 0:00:19]} 21... Qb7 {[%clk 0:00:40.8]} 22. Nb3 {[%clk 0:00:18.4]} 22...
Bb5 {[%clk 0:00:35.9]} 23. Na5 {[%clk 0:00:18.7]} 23... Qb6 {[%clk 0:00:36.7]}
24. Nc6 {[%clk 0:00:18.7]} 24... Bxc6 {[%clk 0:00:35.9]} 25. dxc6 {[%clk
0:00:19.1]} 25... dxe5 {[%clk 0:00:36]} 26. Qe2 {[%clk 0:00:18.6]} 26... exf4
{[%clk 0:00:34.1]} 27. g4 {[%clk 0:00:19.3]} 27... Ne3 {[%clk 0:00:35.1]} 28.
Bxe3 {[%clk 0:00:19.7]} 28... fxe3 {[%clk 0:00:37]} 29. Kh1 {[%clk 0:00:19.9]}
29... Bxa1 {[%clk 0:00:34.6]} 30. Qxe3 {[%clk 0:00:20.2]} 30... Bf6 {[%clk
0:00:34.4]} 31. g5 {[%clk 0:00:21]} 31... O-O {[%clk 0:00:34.1]} 32. gxf6 {[%clk
0:00:21.6]} 32... exf6 {[%clk 0:00:36]} 33. Qh6 {[%clk 0:00:22.2]} 33... Qc7
{[%clk 0:00:34.9]} 34. Rg1 {[%clk 0:00:22.6]} 34... Qg3 {[%clk 0:00:34.3]} 35.
Qc1 {[%clk 0:00:14.1]} 35... Rd4 {[%clk 0:00:34.2]} 36. Qa1 {[%clk 0:00:14]}
36... Rh4 {[%clk 0:00:33.3]} 37. Rf1 {[%clk 0:00:14.7]} 37... Rxh3+ {[%clk
0:00:29.4]} 38. Bxh3 {[%clk 0:00:15.2]} 38... Qxh3+ {[%clk 0:00:31.3]} 39. Kg1
{[%clk 0:00:16.6]} 39... Qg4+ {[%clk 0:00:32.1]} 40. Kh1 {[%clk 0:00:17.1]}
40... Qe4+ {[%clk 0:00:32.5]} 41. Kh2 {[%clk 0:00:16.2]} 41... Qxc6 {[%clk
0:00:33.6]} 42. Rxf6 {[%clk 0:00:15.4]} 42... Qe4 {[%clk 0:00:32.3]} 43. Qf1
{[%clk 0:00:15.3]} 43... Qxc2+ {[%clk 0:00:32.3]} 44. Kh1 {[%clk 0:00:16.3]}
44... Qe4+ {[%clk 0:00:32.6]} 45. Kh2 {[%clk 0:00:17.3]} 45... b3 {[%clk
0:00:33.7]} 46. Qf2 {[%clk 0:00:17.4]} 46... Qe5+ {[%clk 0:00:31.8]} 47. Kh1
{[%clk 0:00:17.8]} 47... b2 {[%clk 0:00:32.8]} 48. Rxg6+ {[%clk 0:00:12.3]}
48... fxg6 {[%clk 0:00:32.5]} 0-1

[Event "*** Qualifier 2: Titled Tuesday 3|2 Blitz"]
[Site "Chess.com"]
[Date "2017.04.11"]
[Round "5"]
[White "macko06"]
[Black "sorito"]
[Result "1-0"]
[WhiteElo "2355"]
[BlackElo "2292"]
[TimeControl "180+2"]
[EndTime "14:06:29 PDT"]
[Termination "macko06 won on time"]

1. d4 {[%clk 0:03:02]} 1... Nf6 {[%clk 0:02:56.7]} 2. Bf4 {[%clk 0:03:02.2]}
2... g6 {[%clk 0:02:56.3]} 3. Nc3 {[%clk 0:03:02.8]} 3... Bg7 {[%clk 0:02:57.8]}
4. e4 {[%clk 0:03:01.9]} 4... d6 {[%clk 0:02:57.2]} 5. Nf3 {[%clk 0:02:58.6]}
5... O-O {[%clk 0:02:58.2]} 6. Be2 {[%clk 0:02:57.5]} 6... Bg4 {[%clk
0:02:58.7]} 7. O-O {[%clk 0:02:55.3]} 7... Nc6 {[%clk 0:02:58.6]} 8. Be3 {[%clk
0:02:54]} 8... Nd7 {[%clk 0:02:56.8]} 9. h3 {[%clk 0:02:51.4]} 9... Bxf3 {[%clk
0:02:57.1]} 10. Bxf3 {[%clk 0:02:52.8]} 10... e5 {[%clk 0:02:58.6]} 11. dxe5
{[%clk 0:02:50.6]} 11... dxe5 {[%clk 0:02:59.3]} 12. Qd2 {[%clk 0:02:48.9]}
12... Nd4 {[%clk 0:02:59]} 13. Bg4 {[%clk 0:02:49]} 13... Nf6 {[%clk 0:02:55.9]}
14. Be2 {[%clk 0:02:47.1]} 14... Qd7 {[%clk 0:02:37.4]} 15. Rad1 {[%clk
0:02:44.9]} 15... Rad8 {[%clk 0:02:36.9]} 16. Bd3 {[%clk 0:02:37]} 16... Nh5
{[%clk 0:02:30.4]} 17. Ne2 {[%clk 0:02:32.7]} 17... Qe6 {[%clk 0:02:15.4]} 18.
c3 {[%clk 0:02:26.8]} 18... Nxe2+ {[%clk 0:02:09.9]} 19. Qxe2 {[%clk 0:02:28.7]}
19... Nf4 {[%clk 0:01:37.3]} 20. Bxf4 {[%clk 0:02:27.7]} 20... exf4 {[%clk
0:01:39.2]} 21. Bb1 {[%clk 0:02:25.2]} 21... Bf6 {[%clk 0:01:30.1]} 22. Rxd8
{[%clk 0:02:23.2]} 22... Rxd8 {[%clk 0:01:30.8]} 23. Rd1 {[%clk 0:02:25.1]}
23... Re8 {[%clk 0:01:32.2]} 24. Qb5 {[%clk 0:02:19.2]} 24... b6 {[%clk
0:01:26.7]} 25. Bc2 {[%clk 0:02:15.3]} 25... f3 {[%clk 0:01:27]} 26. Qd5 {[%clk
0:02:12.7]} 26... Qxd5 {[%clk 0:01:22.5]} 27. Rxd5 {[%clk 0:02:10.8]} 27... fxg2
{[%clk 0:01:23.9]} 28. Kxg2 {[%clk 0:02:11.3]} 28... Be5 {[%clk 0:01:25.4]} 29.
Ba4 {[%clk 0:02:06.6]} 29... Re6 {[%clk 0:01:21.7]} 30. Rd7 {[%clk 0:02:04.9]}
30... Kg7 {[%clk 0:01:19.2]} 31. Bb3 {[%clk 0:02:01.2]} 31... Rf6 {[%clk
0:01:19.9]} 32. f3 {[%clk 0:02:01.7]} 32... h5 {[%clk 0:01:20.3]} 33. Bc4 {[%clk
0:01:59.3]} 33... Bd6 {[%clk 0:01:20.9]} 34. b4 {[%clk 0:01:56.9]} 34... a5
{[%clk 0:01:13.9]} 35. bxa5 {[%clk 0:01:54.5]} 35... bxa5 {[%clk 0:01:15.2]} 36.
a4 {[%clk 0:01:50.7]} 36... g5 {[%clk 0:01:08.9]} 37. Be2 {[%clk 0:01:48.5]}
37... Bf4 {[%clk 0:01:07.5]} 38. Rd5 {[%clk 0:01:46.6]} 38... Rc6 {[%clk
0:01:05.6]} 39. c4 {[%clk 0:01:45.6]} 39... Rb6 {[%clk 0:00:58.8]} 40. Rxa5
{[%clk 0:01:44]} 40... Rb2 {[%clk 0:00:59.4]} 41. Kf1 {[%clk 0:01:45.3]} 41...
Rb1+ {[%clk 0:00:58]} 42. Kf2 {[%clk 0:01:40.7]} 42... Ra1 {[%clk 0:00:51.2]}
43. c5 {[%clk 0:01:37.4]} 43... Rc1 {[%clk 0:00:49.9]} 44. c6 {[%clk 0:01:30.2]}
44... Rxc6 {[%clk 0:00:49.6]} 45. Rd5 {[%clk 0:01:30.4]} 45... Rc3 {[%clk
0:00:48.8]} 46. a5 {[%clk 0:01:28.4]} 46... Ra3 {[%clk 0:00:49.8]} 47. a6 {[%clk
0:01:29.3]} 47... Be3+ {[%clk 0:00:49.7]} 48. Kg2 {[%clk 0:01:26.9]} 48... Ra2
{[%clk 0:00:50.9]} 49. Kf1 {[%clk 0:01:24.9]} 49... Ra1+ {[%clk 0:00:52.1]} 50.
Rd1 {[%clk 0:01:23.5]} 50... Ra2 {[%clk 0:00:51.8]} 51. Bc4 {[%clk 0:01:18.9]}
51... Rf2+ {[%clk 0:00:50.6]} 52. Ke1 {[%clk 0:01:18.7]} 52... Rxf3 {[%clk
0:00:51.1]} 53. Ke2 {[%clk 0:01:15]} 53... Rxh3 {[%clk 0:00:44.4]} 54. Rd3
{[%clk 0:01:12.8]} 54... Rh2+ {[%clk 0:00:45.5]} 55. Kxe3 {[%clk 0:01:12.8]}
55... g4 {[%clk 0:00:40.7]} 56. a7 {[%clk 0:01:10.9]} 56... Rh3+ {[%clk
0:00:37.1]} 57. Kf4 {[%clk 0:01:10.6]} 1-0